bitfinex/quotes_SOLUSD_20250206
["timestamp","ask_amount","ask_price","bid_price","bid_amount"]
[1738859812263,0.11245678,190.16,190.15,40.04513372]
[1738859812590,0.09486373,190.16,190.15,57.31956225]
[1738859812947,0.09486373,190.16,190.15,58.1079568]
[1738859813197,0.20270118,190.18,190.17,21.50196]
[1738859813367,1.18e-06,190.18,190.17,77.51778033]
[1738859813555,1.18e-06,190.18,190.17,82.77618033]
[1738859813963,1.18e-06,190.18,190.17,60.77618033]
[1738859814286,1.18e-06,190.18,190.17,59.98786225]
[1738859814657,1.18e-06,190.18,190.17,46.32503372]
[1738859814866,1.18e-06,190.18,190.17,47.1135218]
[1738859815105,1.18e-06,190.18,190.17,47.11335559]
[1738859815264,1.18e-06,190.18,190.17,48.11335559]
[1738859815782,1.18e-06,190.18,190.17,60.77618412]
[1738859815984,6.549e-05,190.2,190.19,20.0]
[1738859816184,0.03,190.32,190.28,0.25098]
[1738859816368,0.03,190.32,190.31,35.03711372]
[1738859816564,0.03,190.36,190.33,0.12549]
[1738859816763,0.03,190.36,190.34,0.12549]
[1738859816979,0.03,190.36,190.34,34.53515372]
[1738859817260,0.03,190.36,190.33,34.53515372]
[1738859817686,34.53515372,190.34,190.27,39.79075372]
[1738859817890,34.53515372,190.3,190.21,1.6545]
[1738859818079,8.52976059,190.33,190.22,1.78833917]
[1738859818279,0.03,190.36,190.23,13.91380853]
[1738859818589,0.03,190.36,190.26,0.12549]
[1738859818788,0.03,190.36,190.28,0.12549]
[1738859818999,0.03,190.36,190.3,34.53515372]
[1738859820079,34.53515372,190.33,190.26,34.53515372]
[1738859820278,34.53515372,190.28,190.22,34.53515372]
[1738859820599,34.53515372,190.26,190.19,46.28795372]
[1738859820805,20.0,190.31,190.2,34.53515372]
[1738859820988,20.0,190.28,190.19,6.4951]
[1738859821185,20.0,190.28,190.13,6.4223]
[1738859821186,0.7858,190.27,190.13,6.4223]
[1738859821370,20.7858,190.27,190.13,11.6818]
[1738859821570,20.0,190.23,190.11,0.063]
[1738859821769,20.7858,190.23,190.11,0.063]
[1738859822001,34.53515372,190.17,190.11,0.063]
[1738859822200,34.53515372,190.2,190.13,34.66064372]
[1738859822400,34.53515372,190.2,190.11,5.57398]
[1738859822401,34.53515372,190.17,190.11,0.063]
[1738859822701,20.7858,190.23,190.11,34.59815372]
[1738859822899,20.0,190.23,190.12,13.66282853]
[1738859823084,38.47645372,190.3,190.16,0.12549]
[1738859823290,1.5766,190.28,190.16,13.66282853]
[1738859823580,1.5762,190.32,190.18,18.92092853]
[1738859823795,34.53515372,190.29,190.22,34.53515372]
[1738859823988,34.53515372,190.33,190.25,34.66064372]
[1738859824190,34.53515372,190.35,190.28,0.12549]
[1738859824384,0.03,190.36,190.3,34.53515372]
[1738859824701,34.53515372,190.35,190.28,0.12549]
[1738859825180,34.53515372,190.35,190.27,34.53515372]
[1738859825591,34.53515372,190.3,190.23,34.53515372]
[1738859825774,34.53515372,190.29,190.22,40.73375372]
[1738859825979,34.53515372,190.29,190.23,13.78831853]
[1738859826175,34.53515372,190.29,190.24,0.12549]
[1738859826376,34.53515372,190.33,190.26,34.53515372]
[1738859826699,0.03,190.36,190.3,34.53515372]
[1738859826900,0.03,190.36,190.31,34.53515372]
[1738859827210,0.03,190.33,190.3,34.53515372]
[1738859827505,0.03,190.33,190.25,34.53515372]
[1738859827506,34.56515372,190.33,190.25,34.53515372]
[1738859827676,0.03,190.33,190.28,34.53515372]
[1738859827874,0.03,190.33,190.28,0.25098]
[1738859828075,0.03,190.33,190.29,48.19798225]
[1738859828275,0.03,190.33,190.32,0.25098]
[1738859828704,0.03,190.33,190.25,137.2]
[1738859828998,0.03,190.33,190.28,13.91380853]
[1738859829198,0.03,190.33,190.3,0.25098]
[1738859829372,34.56515372,190.33,190.26,34.53515372]
[1738859829573,34.56515372,190.33,190.22,40.73375372]
[1738859829574,34.53515372,190.29,190.22,40.73375372]
[1738859829880,34.53515372,190.3,190.23,35.03711372]
[1738859830390,34.53515372,190.28,190.23,0.50196]
[1738859830574,34.53515372,190.27,190.23,0.25098]
[1738859830770,34.53515372,190.26,190.23,0.25098]
[1738859831005,34.53515372,190.26,190.19,34.53515372]
[1738859831374,34.53515372,190.26,190.2,0.25098]
[1738859832205,34.53515372,190.25,190.2,0.25098]
[1738859832400,34.53515372,190.23,190.16,6.2019]
[1738859832696,0.10859352,190.21,190.16,6.2019]
[1738859832903,0.10859352,190.21,190.17,0.25098]
[1738859833085,0.10859352,190.21,190.17,34.78613372]
[1738859833671,0.10859352,190.21,190.2,0.25098]
[1738859833901,0.10859352,190.21,190.2,49.23746054]
[1738859834117,0.10859352,190.21,190.2,83.77261426]
[1738859835301,0.10859352,190.21,190.2,49.23746054]
[1738859835495,0.10859352,190.21,190.2,83.77261426]
[1738859835693,9.352e-05,190.21,190.2,227.23021426]
[1738859835900,0.0988635,190.25,190.2,227.23021426]
[1738859835901,0.11515437,190.28,190.27,0.50196]
[1738859836090,0.03,190.33,190.27,35.82512219]
[1738859836401,0.03,190.33,190.25,137.2]
[1738859836402,34.53515372,190.32,190.25,137.2]
[1738859836603,0.03,190.33,190.27,13.91380853]
[1738859836806,0.03,190.36,190.31,20.0]
[1738859836976,0.03,190.36,190.34,34.53515372]
[1738859837179,0.03,190.36,190.29,41.15035372]
[1738859837180,34.53515372,190.35,190.29,41.15035372]
[1738859837384,34.56515372,190.36,190.29,41.15035372]
[1738859837687,34.56515372,190.36,190.3,0.25098]
[1738859838199,34.53515372,190.32,190.25,34.53515372]
[1738859838387,0.03,190.36,190.25,0.78822204]
[1738859838585,0.03,190.36,190.26,13.91380853]
[1738859838811,0.03,190.36,190.28,13.91380853]
[1738859839101,0.03,190.36,190.33,0.25098]
[1738859839598,0.03,190.36,190.33,34.78613372]
[1738859839908,0.03,190.36,190.35,0.25098]
[1738859840274,0.03,190.36,190.35,48.44896225]
[1738859840505,0.03,190.36,190.35,54.56646225]
[1738859841285,0.03,190.36,190.35,55.56646225]
[1738859841701,0.03,190.36,190.35,54.56646225]
[1738859842000,0.03,190.36,190.35,59.81986225]
[1738859842999,0.03,190.49,190.38,34.91380853]
[1738859843207,0.03,190.49,190.45,34.53515372]
[1738859843509,0.03,190.49,190.44,0.25098]
[1738859843510,0.03,190.49,190.47,34.78613372]
[1738859843718,0.03,190.49,190.48,48.44896225]
[1738859844007,0.03,190.52,190.51,0.25098]
[1738859844211,0.03,190.52,190.49,34.53515372]
[1738859844514,0.03,190.52,190.42,5.2515]
[1738859844682,0.03,190.52,190.48,34.78613372]
[1738859844883,0.03,190.52,190.5,34.53515372]
[1738859845082,0.03,190.52,190.5,0.25098]
[1738859845483,0.03,190.56,190.55,0.50196]
[1738859845678,7.72455534,190.66,190.57,0.50196]
[1738859845885,7.72455534,190.66,190.62,34.78613372]
[1738859846207,7.72455534,190.66,190.6,34.53515372]
[1738859846412,7.72455534,190.66,190.63,34.53515372]
[1738859846907,7.72455534,190.66,190.6,14.19854847]
[1738859847113,9.29795534,190.66,190.6,34.53515372]
[1738859847301,34.53515372,190.67,190.61,34.78613372]
[1738859847624,0.03,190.69,190.66,0.25098]
[1738859847905,0.03,190.69,190.6,0.78652498]
[1738859848103,34.56515372,190.69,190.62,34.53515372]
[1738859848312,34.53515372,190.68,190.62,34.53515372]
[1738859848610,34.53515372,190.68,190.63,0.50196]
[1738859848814,34.53515372,190.65,190.59,34.53515372]
[1738859849003,1.0,190.68,190.51,6.03579719]
[1738859849318,34.53515372,190.57,190.51,34.53515372]
[1738859849485,34.53515372,190.57,190.49,12.8902]
[1738859849486,0.7858,190.68,190.53,13.91380853]
[1738859849688,0.03,190.69,190.55,13.91380853]
[1738859850123,20.0,190.67,190.55,13.91380853]
[1738859850624,5.02122472,190.58,190.51,34.53515372]
[1738859850790,34.53515372,190.57,190.5,34.53515372]
[1738859851112,0.03,190.63,190.57,0.25098]
[1738859851286,0.03,190.63,190.53,20.0]
[1738859851482,0.03,190.63,190.49,11.2929]
[1738859851889,0.03,190.63,190.49,6.0434]
[1738859852089,20.0,190.6,190.49,6.0434]
[1738859852299,20.0,190.6,190.5,13.91380853]
[1738859852614,0.11259228,190.51,190.5,48.44896225]
[1738859852814,0.11259228,190.51,190.5,0.25098]
[1738859853192,0.11259228,190.51,190.46,34.53515372]
[1738859853516,0.11259228,190.51,190.43,13.4173]
[1738859853517,34.53515372,190.5,190.43,41.11695372]
[1738859854111,36.10995372,190.5,190.44,0.25098]
[1738859854307,34.53515372,190.49,190.44,0.25098]
[1738859854617,0.11259228,190.51,190.49,0.50196]
[1738859854807,0.11259228,190.51,190.5,13.66282853]
[1738859855116,0.11259228,190.51,190.5,0.25098]
[1738859855326,0.11399767,190.52,190.5,0.25098]
[1738859855339,0.09399767,190.52,190.5,13.91380853]
[1738859855492,0.1074562,190.56,190.54,13.41184853]
[1738859855830,0.1074562,190.56,190.51,6.1191]
[1738859855998,0.1074562,190.56,190.52,0.25098]
[1738859856190,0.1074562,190.56,190.52,5.49968]
[1738859856405,0.1074562,190.56,190.55,34.91162372]
[1738859856606,0.1074562,190.56,190.55,48.44896225]
[1738859857109,5.62e-05,190.56,190.55,49.23573087]
[1738859857504,5.62e-05,190.56,190.55,34.78613372]
[1738859857904,5.62e-05,190.56,190.55,48.44896225]
[1738859858215,5.62e-05,190.56,190.55,53.69686225]
[1738859858528,6.374e-05,190.57,190.55,190.89686225]
[1738859858725,0.03,190.63,190.55,190.89686225]
[1738859858726,9.368e-05,190.59,190.58,33.91380853]
[1738859858926,9.368e-05,190.59,190.58,69.23558008]
[1738859859225,9.368e-05,190.59,190.58,68.32347225]
[1738859859419,9.368e-05,190.59,190.58,69.23575532]
[1738859859831,9.368e-05,190.59,190.58,207.43575532]
[1738859860005,9.368e-05,190.59,190.58,207.64896225]
[1738859860201,9.368e-05,190.59,190.58,210.89606225]
[1738859860425,9.368e-05,190.59,190.58,73.69606225]
[1738859861022,9.368e-05,190.59,190.55,34.53515372]
[1738859861221,9.368e-05,190.59,190.55,39.78295372]
[1738859861415,9.368e-05,190.59,190.56,0.25098]
[1738859861614,9.368e-05,190.59,190.58,34.53515372]
[1738859861833,9.368e-05,190.59,190.58,34.78613372]
[1738859862024,9.368e-05,190.59,190.58,0.25098]
[1738859862227,9.368e-05,190.59,190.56,34.53515372]
[1738859862428,9.368e-05,190.59,190.55,34.53515372]
[1738859862618,9.368e-05,190.59,190.53,0.12549]
[1738859862619,9.368e-05,190.59,190.56,34.53515372]
[1738859862823,9.368e-05,190.59,190.54,48.19798225]
[1738859863034,34.5352474,190.59,190.51,5.08]
[1738859863331,9.368e-05,190.59,190.51,5.08]
[1738859863538,34.53515372,190.56,190.5,34.53515372]
[1738859863722,34.53515372,190.56,190.51,0.25098]
[1738859864243,34.53515372,190.52,190.45,34.53515372]
[1738859864409,34.53515372,190.49,190.42,34.53515372]
[1738859864742,34.53515372,190.51,190.45,0.25098]
[1738859864933,34.53515372,190.52,190.45,34.78613372]
[1738859865332,34.53515372,190.54,190.47,34.53515372]
[1738859865516,34.53515372,190.56,190.49,34.53515372]
[1738859865711,9.368e-05,190.59,190.53,34.53515372]
[1738859865911,9.368e-05,190.59,190.56,0.25098]
[1738859866142,9.368e-05,190.59,190.57,34.53515372]
[1738859866326,9.368e-05,190.59,190.58,5.49808]
[1738859866516,9.368e-05,190.59,190.58,0.25098]
[1738859867419,9.368e-05,190.59,190.58,48.32347225]
[1738859867628,9.368e-05,190.59,190.58,53.57057225]
[1738859868007,9.368e-05,190.59,190.55,34.53515372]
[1738859868213,9.368e-05,190.59,190.55,48.32347225]
[1738859868435,9.368e-05,190.59,190.58,48.44896225]
[1738859868633,0.03,190.63,190.6,0.12549]
[1738859868838,0.03,190.63,190.56,0.78664771]
[1738859869334,0.03,190.63,190.53,5.2484]
[1738859869708,0.03,190.63,190.58,48.32347225]
[1738859869911,34.53515372,190.61,190.54,34.53515372]
[1738859870143,34.53515372,190.59,190.52,39.78385372]
[1738859870323,34.53515372,190.58,190.51,34.53515372]
[1738859870512,34.53515372,190.57,190.51,5.249]
[1738859870726,34.53515372,190.57,190.52,0.25098]
[1738859870920,34.53515372,190.58,190.52,0.25098]
[1738859871136,34.53515372,190.59,190.52,34.78613372]
[1738859871541,34.53515372,190.61,190.54,0.25098]
[1738859871745,34.53515372,190.61,190.54,34.78613372]
[1738859871916,34.53515372,190.62,190.56,0.25098]
[1738859872241,0.03,190.63,190.58,34.53515372]
[1738859872421,36.10855372,190.67,190.6,34.53515372]
[1738859872750,0.09929219,190.61,190.6,34.78613372]
[1738859873313,0.09929219,190.61,190.6,0.25098]
[1738859873527,0.09929219,190.61,190.6,0.12549]
[1738859873741,0.09929219,190.61,190.59,34.53515372]
[1738859874124,34.63444591,190.61,190.54,34.53515372]
[1738859874316,0.09929219,190.61,190.55,34.53515372]
[1738859874512,0.09929219,190.61,190.6,0.25098]
[1738859874730,0.09929219,190.61,190.6,34.78613372]
[1738859875262,0.09929219,190.61,190.6,49.11029205]
[1738859875448,0.09929219,190.61,190.59,34.53515372]
[1738859876146,0.03,190.6,190.59,34.78613372]
[1738859876719,0.03,190.6,190.59,54.35711774]
[1738859876921,0.03,190.6,190.59,54.48260774]
[1738859877670,0.03,190.6,190.59,54.35711774]
[1738859877847,0.03,190.6,190.59,0.25098]
[1738859878148,0.03,190.6,190.54,39.78335372]
[1738859878618,0.03,190.6,190.59,0.25098]
[1738859879927,0.03,190.6,190.57,5.2473]
[1738859880128,0.03,190.6,190.55,5.2479]
[1738859880430,34.53515372,190.57,190.51,5.249]
[1738859880650,34.53515372,190.56,190.49,34.53515372]
[1738859880854,34.53515372,190.55,190.48,34.53515372]
[1738859881020,34.53515372,190.54,190.46,1.31031171]
[1738859881435,34.53515372,190.57,190.5,34.53515372]
[1738859881650,0.03,190.6,190.48,34.78613372]
[1738859881651,34.53515372,190.55,190.48,34.78613372]
[1738859881924,36.10955372,190.55,190.48,34.78613372]
[1738859882141,34.53515372,190.54,190.44,34.53515372]
[1738859882349,20.0,190.51,190.36,150.3323]
[1738859882552,34.53515372,190.46,190.39,34.53515372]
[1738859882763,34.53515372,190.46,190.36,155.4123]
[1738859882764,34.53515372,190.45,190.38,34.53515372]
[1738859882971,34.53515372,190.41,190.35,10.5092]
[1738859883248,20.7858,190.47,190.37,0.25098]
[1738859883460,34.53515372,190.43,190.37,0.25098]
[1738859883758,34.53515372,190.4,190.34,5.256]
[1738859884062,34.53515372,190.46,190.36,13.91380853]
[1738859884354,3.3601,190.55,190.42,0.25098]
[1738859884663,1.5743,190.55,190.43,0.12549]
[1738859884963,1.5742,190.57,190.47,13.53733853]
[1738859885258,34.53515372,190.58,190.52,34.53515372]
[1738859885555,34.56515372,190.6,190.53,34.53515372]
[1738859885851,34.53515372,190.59,190.52,34.53515372]
[1738859886038,34.53515372,190.54,190.47,39.91054372]
[1738859886237,1.0,190.56,190.43,5.251]
[1738859886537,1.7858,190.55,190.41,11.8429]
[1738859886757,20.0,190.57,190.43,13.91380853]
[1738859887253,34.53515372,190.48,190.43,0.25098]
[1738859887455,34.53515372,190.48,190.41,46.37805372]
[1738859887642,34.53515372,190.47,190.4,34.53515372]
[1738859888167,34.53515372,190.46,190.39,39.78725372]
[1738859888326,4.06189,190.53,190.42,34.53515372]
[1738859888327,34.53515372,190.49,190.42,34.53515372]
[1738859888530,34.53515372,190.48,190.42,0.25098]
[1738859889144,34.53515372,190.49,190.42,34.53515372]
[1738859889357,1.5747,190.51,190.44,34.53515372]
[1738859889358,34.53515372,190.51,190.44,34.53515372]
[1738859889856,34.53515372,190.51,190.45,0.25098]
[1738859890061,34.53515372,190.57,190.5,34.53515372]
[1738859890356,36.10915372,190.59,190.52,34.53515372]
[1738859890564,1.0,190.58,190.42,18.3802]
[1738859890852,20.0,190.57,190.42,5.2514]
[1738859891051,6.3246,190.6,190.46,13.91380853]
[1738859891361,0.03,190.6,190.53,0.25098]
[1738859891957,34.56515372,190.6,190.53,34.78613372]
[1738859892538,0.10836456,190.54,190.53,48.19798225]
[1738859892747,0.10836456,190.54,190.53,53.44648225]
[1738859892942,0.10836456,190.54,190.53,53.57197225]
[1738859893252,0.10816923,190.56,190.55,13.91380853]
[1738859893459,0.10816923,190.56,190.55,49.23582453]
[1738859893967,0.10816923,190.56,190.55,34.78613372]
[1738859894267,0.10816923,190.56,190.51,34.53515372]
[1738859894437,0.10816923,190.56,190.48,6.314]
[1738859894438,34.64332295,190.56,190.49,5.2496]
[1738859894638,34.64332295,190.56,190.5,13.66282853]
[1738859894940,0.10816923,190.56,190.52,0.25098]
[1738859895773,0.10816923,190.56,190.48,143.514]
[1738859896075,34.53515372,190.52,190.45,39.78575372]
[1738859896239,1.5743,190.55,190.44,39.78605372]
[1738859896240,34.53515372,190.51,190.44,39.78605372]
[1738859896435,34.53515372,190.53,190.47,0.12549]
[1738859896665,34.53515372,190.54,190.48,5.2498]
[1738859897174,34.53515372,190.53,190.47,0.12549]
[1738859897472,36.10955372,190.54,190.47,34.66064372]
[1738859897639,36.10955372,190.54,190.47,39.91074372]
[1738859897982,34.53515372,190.55,190.48,34.66064372]
[1738859898659,34.53515372,190.52,190.47,0.12549]
[1738859898960,34.53515372,190.51,190.47,0.12549]
[1738859899165,34.53515372,190.5,190.44,5.2509]
[1738859899345,1.5745,190.54,190.44,39.78605372]
[1738859899346,34.53515372,190.51,190.44,39.78605372]
[1738859899555,34.53515372,190.55,190.48,34.78613372]
[1738859900066,36.21762295,190.56,190.49,34.53515372]
[1738859900279,34.56515372,190.55,190.48,34.84913372]
[1738859900564,34.53515372,190.54,190.48,0.31398]
[1738859900769,34.56515372,190.55,190.48,34.84913372]
[1738859901778,34.53515372,190.53,190.48,0.31398]
[1738859902071,34.53515372,190.52,190.48,0.31398]
[1738859902276,34.53515372,190.54,190.48,0.31398]
[1738859902476,0.03,190.55,190.5,34.53515372]
[1738859902642,0.03,190.55,190.51,34.53515372]
[1738859902843,0.03,190.55,190.52,34.53515372]
[1738859903058,0.03,190.55,190.49,53.44758225]
[1738859903254,0.03,190.55,190.51,0.25098]
[1738859903871,0.03,190.55,190.5,34.53515372]
[1738859904169,34.53515372,190.51,190.48,0.063]
[1738859904569,34.53515372,190.52,190.48,0.063]
[1738859904746,0.03,190.55,190.48,0.063]
[1738859904946,0.03,190.55,190.49,0.25098]
[1738859905358,0.03,190.55,190.48,0.063]
[1738859905585,0.8158,190.55,190.48,0.063]
[1738859905768,21.17790184,190.49,190.48,0.063]
[1738859906370,21.17790184,190.41,190.36,6.4804]
[1738859906776,21.17790184,190.46,190.39,21.17790184]
[1738859906948,21.17790184,190.45,190.38,21.30339184]
[1738859907149,21.17790184,190.44,190.38,0.12549]
[1738859907467,21.17790184,190.45,190.4,0.12549]
[1738859907681,21.17790184,190.44,190.39,0.12549]
[1738859907968,21.17790184,190.44,190.39,0.25098]
[1738859908360,21.17790184,190.44,190.37,34.58975037]
[1738859908669,21.17790184,190.43,190.38,0.25098]
[1738859908852,21.17790184,190.44,190.36,6.4804]
[1738859909060,7.45237172,190.54,190.4,5.2521]
[1738859909061,1.5745,190.53,190.4,5.2521]
[1738859909247,1.5745,190.53,190.45,21.17790184]
[1738859909248,21.17790184,190.52,190.45,21.17790184]
[1738859909442,1.6044,190.55,190.45,0.12549]
[1738859909670,0.03,190.55,190.47,0.12549]
[1738859910176,0.03,190.55,190.46,0.25098]
[1738859910359,0.03,190.55,190.49,21.17790184]
[1738859910554,0.03,190.55,190.51,21.17790184]
[1738859910757,0.03,190.55,190.51,0.25098]
[1738859911173,1.68504218,190.58,190.51,0.25098]
[1738859911355,22.86294402,190.58,190.51,21.42888184]
[1738859911563,21.17790184,190.57,190.51,0.25098]
[1738859911771,22.86294402,190.58,190.51,21.42888184]
[1738859911976,21.17790184,190.55,190.48,21.17790184]
[1738859912172,21.17790184,190.52,190.45,21.17790184]
[1738859912475,20.0,190.53,190.36,150.2635]
[1738859912709,6.023e-05,190.46,190.42,1.063]
[1738859912873,6.023e-05,190.46,190.45,20.0]
[1738859913083,0.11193179,190.49,190.45,20.78726948]
[1738859913377,0.11193179,190.49,190.47,13.91380853]
[1738859913674,0.11193179,190.49,190.48,1.16372257]
[1738859913971,0.11193179,190.49,190.48,35.45889934]
[1738859914181,0.11193179,190.49,190.48,34.67164677]
[1738859914384,0.11193179,190.49,190.48,49.12180638]
[1738859914849,0.11193179,190.49,190.48,55.49470638]
[1738859915448,0.11193179,190.49,190.48,60.74450638]
[1738859916472,0.11193179,190.49,190.48,41.04454677]
[1738859916672,0.11193179,190.49,190.44,34.42066677]
[1738859916983,0.11193179,190.49,190.47,34.42066677]
[1738859917195,0.11193179,190.49,190.48,48.2089853]
[1738859917686,0.11193179,190.49,190.48,53.5842753]
[1738859918486,0.11193179,190.49,190.48,34.67164677]
[1738859918685,0.11193179,190.49,190.48,0.25098]
[1738859919366,0.11193179,190.49,190.43,34.42066677]
[1738859919767,0.11193179,190.49,190.47,0.25098]
[1738859919964,0.11193179,190.49,190.48,34.67164677]
[1738859920163,0.11193179,190.49,190.43,5.37669]
[1738859920164,0.11193179,190.49,190.42,6.2073]
[1738859920487,34.42066677,190.46,190.42,0.063]
[1738859920785,1.68673179,190.49,190.42,0.063]
[1738859920993,21.68673179,190.49,190.42,0.063]
[1738859921288,0.7858,190.48,190.42,0.063]
[1738859921670,20.0,190.44,190.42,0.063]
[1738859921883,34.42066677,190.43,190.42,0.063]
[1738859923188,34.54615677,190.43,190.42,0.063]
[1738859923363,35.54615677,190.43,190.42,0.063]
[1738859923553,34.42066677,190.43,190.42,0.063]
[1738859923759,35.99596677,190.43,190.42,0.063]
[1738859924286,37.78176677,190.43,190.42,0.0001]
[1738859924480,38.03274677,190.43,190.42,0.0001]
[1738859925079,35.99596677,190.43,190.42,0.0001]
[1738859925458,34.42066677,190.44,190.42,0.0001]
[1738859925656,35.99586677,190.45,190.42,0.0001]
[1738859925854,1.5752,190.45,190.42,0.0001]
[1738859926267,34.42066677,190.46,190.42,0.0001]
[1738859926785,35.99586677,190.46,190.42,0.0001]
[1738859926987,34.42066677,190.43,190.42,0.0001]
[1738859928098,37.24694677,190.43,190.42,0.0001]
[1738859928299,1.0,190.39,190.33,0.063]
[1738859928589,34.42066677,190.34,190.33,0.063]
[1738859930088,35.99676677,190.34,190.33,0.063]
[1738859930482,34.42066677,190.34,190.33,0.063]
[1738859930779,34.42066677,190.37,190.33,0.063]
[1738859930970,1.0,190.43,190.33,0.063]
[1738859930971,35.99636677,190.39,190.33,0.063]
[1738859931493,34.42066677,190.37,190.33,0.063]
[1738859931805,1.5757,190.39,190.33,0.063]
[1738859931806,35.99636677,190.39,190.33,0.063]
[1738859932173,34.42066677,190.4,190.34,34.42066677]
[1738859932384,34.42066677,190.4,190.33,34.48366677]
[1738859932589,0.1089006,190.35,190.33,34.48366677]
[1738859933269,0.1089006,190.35,190.34,13.66282853]
[1738859933489,0.1089006,190.35,190.34,48.0834953]
[1738859935692,0.1089006,190.35,190.33,0.063]
[1738859935906,0.1089006,190.35,190.34,34.42066677]
[1738859936198,0.1089006,190.35,190.34,48.3344753]
[1738859936609,0.11285765,190.39,190.36,0.12549]
[1738859936895,0.13664286,190.43,190.39,0.37647]
[1738859937196,0.13664286,190.43,190.39,34.79713677]
[1738859937379,0.13664286,190.43,190.39,48.2089853]
[1738859937576,0.13664286,190.43,190.4,34.79713677]
[1738859937775,0.13664286,190.43,190.37,34.42066677]
[1738859938193,1.71194286,190.43,190.37,34.42066677]
[1738859938396,34.42066677,190.39,190.34,0.063]
[1738859938577,1.68064922,190.41,190.34,0.063]
[1738859939097,34.42066677,190.35,190.34,0.063]
[1738859939674,35.99666677,190.35,190.34,0.063]
[1738859940770,34.42066677,190.37,190.34,0.063]
[1738859940971,34.42066677,190.39,190.34,0.063]
[1738859941190,34.42066677,190.38,190.34,0.063]
[1738859941395,0.7858,190.38,190.34,0.063]
[1738859941575,20.0,190.37,190.34,0.063]
[1738859941786,1.5759,190.36,190.34,0.063]
[1738859942303,1.5758,190.37,190.34,0.063]
[1738859942605,34.42066677,190.39,190.34,0.063]
[1738859943178,34.52581599,190.41,190.34,13.60033853]
[1738859943397,0.10514922,190.41,190.4,34.42066677]
[1738859943577,0.10514922,190.41,190.4,48.0834953]
[1738859943779,0.10514922,190.41,190.4,53.3355953]
[1738859944086,0.10514922,190.41,190.4,48.0834953]
[1738859944290,0.10514922,190.41,190.38,6.3628]
[1738859944703,0.10514922,190.41,190.38,11.6154]
[1738859944903,0.10514922,190.41,190.39,0.25098]
[1738859946309,34.52581599,190.41,190.34,39.73716677]
[1738859946694,34.52581599,190.41,190.35,13.66282853]
[1738859947406,0.10514922,190.41,190.35,18.91622853]
[1738859947715,0.10514922,190.41,190.39,34.67164677]
[1738859948211,0.10514922,190.41,190.4,34.42066677]
[1738859948400,0.10514922,190.41,190.4,47.8325153]
[1738859948792,0.10514922,190.41,190.4,13.41184853]
[1738859949304,0.10514922,190.41,190.37,39.67336677]
[1738859949511,0.10514922,190.41,190.37,5.2527]
[1738859949712,0.10514922,190.41,190.38,0.25098]
[1738859950084,0.10514922,190.41,190.38,34.67164677]
[1738859950407,0.10514922,190.41,190.38,0.25098]
[1738859950807,34.42066677,190.39,190.34,0.063]
[1738859951000,34.42066677,190.37,190.34,0.063]
[1738859951815,0.13514922,190.41,190.37,0.25098]
[1738859951986,0.13514922,190.41,190.38,34.42066677]
[1738859952184,0.13514922,190.41,190.39,34.42066677]
[1738859952388,0.13514922,190.41,190.38,34.42066677]
[1738859952584,0.10042092,190.4,190.38,34.42066677]
[1738859953198,0.10042092,190.4,190.37,34.67164677]
[1738859953405,34.52108769,190.4,190.34,5.3166]
[1738859953597,0.10042092,190.4,190.35,13.66282853]
[1738859954718,34.42066677,190.36,190.34,0.063]
[1738859954903,34.42066677,190.35,190.34,0.063]
[1738859956795,35.99666677,190.35,190.34,0.063]
[1738859957297,38.12215677,190.35,190.34,0.0001]
[1738859957499,2.12549,190.34,190.33,0.0001]
[1738859957822,105.28996207,190.34,190.33,0.0001]
[1738859957992,104.50416207,190.34,190.33,0.0001]
[1738859958192,56.54615677,190.34,190.33,0.0001]
[1738859958403,57.33195677,190.34,190.33,0.0001]
[1738859958609,57.33195677,190.34,190.28,0.063]
[1738859958610,20.0,190.3,190.28,0.063]
[1738859958922,36.78296677,190.29,190.28,0.063]
[1738859959292,35.99716677,190.29,190.28,0.063]
[1738859959519,1.5765,190.29,190.28,0.063]
[1738859959711,35.99716677,190.29,190.28,0.063]
[1738859960417,34.42066677,190.31,190.28,0.063]
[1738859961295,35.99706677,190.31,190.28,0.063]
[1738859963124,35.99676677,190.34,190.28,0.063]
[1738859963419,1.5761,190.34,190.28,34.48366677]
[1738859963622,1.576,190.36,190.31,34.42066677]
[1738859964008,0.03,190.34,190.31,34.42066677]